fUSD/lending_fUSD_20240814
["ID","MTS","AMOUNT","RATE_DAILY","PERIOD"]
[334831103,1723605116213,-920.13,0.00015342,2]
[334831104,1723605116222,-500.0,0.00015342,2]
[334831105,1723605116232,-1991.21,0.00015342,2]
[334831106,1723605116241,-566.69,0.00015342,2]
[334831107,1723605116250,-523.94200451,0.00015342,2]
[334831108,1723605116261,-500.0,0.00015342,2]
[334831109,1723605116270,-500.0,0.00015342,2]
[334831110,1723605116280,-3979.88,0.00015342,2]
[334831111,1723605116290,-400.0,0.00015342,2]
[334831112,1723605116300,-687.14739384,0.00015369,2]
[334831113,1723605116309,-211.77694306,0.00015369,2]
[334831114,1723605116319,-214.06,0.00015536,2]
[334831115,1723605116329,-823.0,0.00015614,2]
[334831116,1723605116339,-500.0,0.00015616,2]
[334831117,1723605116351,-500.0,0.00015616,2]
[334831118,1723605116360,-1578.73,0.00015616,2]
[334831119,1723605116371,-716.57,0.00015616,2]
[334831120,1723605116380,-500.0,0.00015616,2]
[334831121,1723605116390,-1456.16,0.00015616,2]
[334831122,1723605116400,-722.17,0.00015616,2]
[334831123,1723605116409,-666.82,0.00015616,2]
[334831124,1723605116419,-1288.24,0.00015616,2]
[334831125,1723605116429,-529.74,0.00015616,2]
[334831126,1723605116439,-608.2,0.00015616,2]
[334831127,1723605116449,-1485.87,0.00015616,2]
[334831128,1723605116458,-514.2,0.00015616,2]
[334831129,1723605116468,-517.05,0.00015616,2]
[334831130,1723605116479,-487.06015331,0.00015616,2]
[334831131,1723605116490,-500.0,0.00015616,2]
[334831132,1723605116500,-642.75,0.00015616,2]
[334831133,1723605116510,-1111.14,0.00015616,2]
[334831134,1723605116519,-500.0,0.00015616,2]
[334831135,1723605116528,-500.0,0.00015616,2]
[334831136,1723605116538,-500.0,0.00015616,2]
[334831137,1723605116548,-651.1,0.00015616,2]
[334831138,1723605116557,-503.03196421,0.00015616,2]
[334831139,1723605116567,-1485.31,0.00015616,2]
[334831140,1723605116576,-500.0,0.00015616,2]
[334831141,1723605116586,-500.0,0.00015616,2]
[334831142,1723605116596,-1237.37,0.00015616,2]
[334831143,1723605116605,-500.0,0.00015616,2]
[334831144,1723605116615,-500.0,0.00015616,2]
[334831145,1723605116626,-500.0,0.00015616,2]
[334831146,1723605116636,-500.0,0.00015616,2]
[334831147,1723605116646,-2683.95,0.00015616,2]
[334831148,1723605116656,-500.0,0.00015616,2]
[334831149,1723605116666,-500.0,0.00015616,2]
[334831150,1723605116677,-500.0,0.00015616,2]
[334831151,1723605116687,-543.73,0.00015616,2]
[334831152,1723605116697,-1047.06,0.00015616,2]
[334831153,1723605116707,-500.0,0.00015616,2]
[334831154,1723605116717,-500.0,0.00015616,2]
[334831155,1723605116726,-171.66023772,0.00015616,2]
[334831156,1723605116736,-1348.18,0.00015616,2]
[334831157,1723605116746,-1232.81,0.00015616,2]
[334831158,1723605116755,-1118.67,0.00015616,2]
[334831159,1723605116764,-500.0,0.00015616,2]
[334831160,1723605116774,-976.44,0.00015616,2]
[334831161,1723605116784,-166.92702298,0.00015616,2]
[334831162,1723605116794,-598.58,0.00015616,2]
[334831163,1723605116803,-500.0,0.00015616,2]
[334831164,1723605116812,-500.0,0.00015616,2]
[334831165,1723605116821,-500.0,0.00015616,2]
[334831166,1723605116831,-775.08,0.00015616,2]
[334831167,1723605116840,-538.36,0.00015616,2]
[334831168,1723605116849,-500.0,0.00015616,2]
[334831169,1723605116858,-500.0,0.00015616,2]
[334831170,1723605116868,-285.30587001,0.00015616,2]
[334831171,1723605116877,-716.51,0.00015616,2]
[334831172,1723605116886,-630.58,0.00015616,2]
[334831173,1723605116896,-1000.0,0.00015616,2]
[334831174,1723605116905,-500.0,0.00015616,2]
[334831175,1723605116914,-500.0,0.00015616,2]
[334831176,1723605116924,-618.82,0.00015616,2]
[334831177,1723605116933,-1479.01,0.00015616,2]
[334831178,1723605116942,-559.42,0.00015616,2]
[334831179,1723605116952,-500.0,0.00015616,2]
[334831180,1723605116961,-500.0,0.00015616,2]
[334831181,1723605116971,-3752.58,0.00015616,2]
[334831182,1723605116980,-500.0,0.00015616,2]
[334831183,1723605116990,-591.66,0.00015616,2]
[334831184,1723605116999,-500.0,0.00015616,2]
[334831185,1723605117008,-1435.79,0.00015616,2]
[334831186,1723605117017,-500.0,0.00015616,2]
[334831187,1723605117026,-1607.61,0.00015616,2]
[334831188,1723605117036,-1891.11,0.00015616,2]
[334831189,1723605117045,-662.17,0.00015616,2]
[334831190,1723605117055,-924.42,0.00015616,2]
[334831191,1723605117067,-1076.95,0.00015616,2]
[334831192,1723605117078,-500.0,0.00015616,2]
[334831193,1723605117087,-2239.55,0.00015616,2]
[334831194,1723605117096,-672.35,0.00015616,2]
[334831195,1723605117106,-4507.7,0.00015616,2]
[334831196,1723605117115,-500.0,0.00015616,2]
[334831197,1723605117125,-1006.17,0.00015616,2]
[334831198,1723605117134,-500.0,0.00015616,2]
[334831199,1723605117145,-500.0,0.00015616,2]
[334831200,1723605117156,-1053.16,0.00015616,2]
[334831201,1723605117166,-500.0,0.00015616,2]
[334831202,1723605117175,-2456.38,0.00015616,2]
[334831203,1723605117184,-3482.29,0.00015616,2]
[334831204,1723605117195,-2187.52,0.00015616,2]
[334831205,1723605117204,-500.0,0.00015616,2]
[334831206,1723605117214,-829.91,0.00015616,2]
[334831207,1723605117225,-500.0,0.00015616,2]
[334831208,1723605117235,-1703.74,0.00015616,2]
[334831209,1723605117245,-1971.7,0.00015616,2]
[334831210,1723605117255,-760.2,0.00015616,2]
[334831211,1723605117264,-1826.68,0.00015616,2]
[334831212,1723605117273,-500.0,0.00015616,2]
[334831213,1723605117283,-2857.54,0.00015616,2]
[334831214,1723605117292,-500.0,0.00015616,2]
[334831215,1723605117301,-500.0,0.00015616,2]
[334831216,1723605117310,-1745.81,0.00015616,2]
[334831217,1723605117320,-621.86544193,0.00015616,2]
[334831218,1723605117329,-2493.78,0.00015616,2]
[334831219,1723605117339,-500.0,0.00015616,2]
[334831220,1723605117352,-2939.52,0.00015616,2]
[334831221,1723605117362,-893.52,0.00015616,2]
[334831222,1723605117372,-500.0,0.00015616,2]
[334831223,1723605117381,-1363.03,0.00015616,2]
[334831224,1723605117393,-500.0,0.00015616,2]
[334831225,1723605117403,-2070.38,0.00015616,2]
[334831226,1723605117414,-4162.9,0.00015616,2]
[334831227,1723605117427,-500.0,0.00015616,2]
[334831228,1723605117438,-1715.05,0.00015616,2]
[334831229,1723605117447,-1237.73,0.00015616,2]
[334831230,1723605117456,-2002.18,0.00015616,2]
[334831231,1723605117466,-519.39,0.00015616,2]
[334831232,1723605117475,-1293.49,0.00015616,2]
[334831233,1723605117484,-500.0,0.00015616,2]
[334831234,1723605117493,-500.0,0.00015616,2]
[334831235,1723605117503,-1362.3,0.00015616,2]
[334831236,1723605117512,-1490.02,0.00015616,2]
[334831237,1723605117521,-2761.82,0.00015616,2]
[334831238,1723605117530,-694.54,0.00015616,2]
[334831239,1723605117540,-500.0,0.00015616,2]
[334831240,1723605117549,-500.0,0.00015616,2]
[334831241,1723605117559,-2115.54,0.00015616,2]
[334831242,1723605117568,-500.0,0.00015616,2]
[334831243,1723605117577,-500.0,0.00015616,2]
[334831244,1723605117587,-1981.16,0.00015616,2]
[334831245,1723605117596,-1990.68,0.00015616,2]
[334831246,1723605117605,-500.0,0.00015616,2]
[334831247,1723605117615,-500.0,0.00015616,2]
[334831248,1723605117625,-500.0,0.00015616,2]
[334831249,1723605117634,-711.09,0.00015616,2]
[334831250,1723605117643,-569.37,0.00015616,2]
[334831251,1723605117653,-2757.85,0.00015616,2]
[334831252,1723605117663,-500.0,0.00015616,2]
[334831253,1723605117673,-500.0,0.00015616,2]
[334831254,1723605117682,-2766.44,0.00015616,2]
[334831255,1723605117691,-500.0,0.00015616,2]
[334831256,1723605117700,-1317.85,0.00015616,2]
[334831257,1723605117710,-500.0,0.00015616,2]
[334831258,1723605117719,-2961.75,0.00015616,2]
[334831259,1723605117728,-1308.18,0.00015616,2]
[334831260,1723605117738,-151.377752,0.00015616,2]
[334831261,1723605117747,-500.0,0.00015616,2]
[334831262,1723605117759,-500.0,0.00015616,2]
[334831263,1723605117768,-2490.28,0.00015616,2]
[334831264,1723605117777,-500.0,0.00015616,2]
[334831265,1723605117786,-2203.39,0.00015616,2]
[334831266,1723605117795,-152.506681,0.00015616,2]
[334831267,1723605117804,-508.38,0.00015616,2]
[334831268,1723605117814,-500.0,0.00015616,2]
[334831269,1723605117823,-484.79654657,0.00015616,2]
[334831270,1723605117832,-878.97,0.00015616,2]
[334831271,1723605117842,-500.0,0.00015616,2]
[334831272,1723605117851,-683.69,0.00015616,2]
[334831273,1723605117861,-1154.39,0.00015616,2]
[334831274,1723605117870,-1322.45,0.00015616,2]
[334831275,1723605117880,-500.0,0.00015616,2]
[334831276,1723605117890,-500.0,0.00015616,2]
[334831277,1723605117899,-500.0,0.00015616,2]
[334831278,1723605117909,-3824.63,0.00015616,2]
[334831279,1723605117919,-500.0,0.00015616,2]
[334831280,1723605117929,-2480.21,0.00015616,2]
[334831281,1723605117939,-553.9,0.00015616,2]
[334831282,1723605117948,-917.23,0.00015616,2]
[334831283,1723605117958,-1073.07,0.00015616,2]
[334831284,1723605117967,-500.0,0.00015616,2]
[334831285,1723605117976,-500.0,0.00015616,2]
[334831286,1723605117986,-500.0,0.00015616,2]
[334831287,1723605117996,-1290.02,0.00015616,2]
[334831288,1723605118006,-649.52,0.00015616,2]
[334831289,1723605118015,-3127.31,0.00015616,2]
[334831290,1723605118025,-1748.45,0.00015616,2]
[334831291,1723605118034,-793.31,0.00015616,2]
[334831292,1723605118044,-858.47,0.00015616,2]
[334831293,1723605118053,-500.0,0.00015616,2]
[334831294,1723605118063,-609.62,0.00015616,2]
[334831295,1723605118072,-500.0,0.00015616,2]
[334831296,1723605118082,-500.0,0.00015616,2]
[334831297,1723605118091,-500.0,0.00015616,2]
[334831298,1723605118199,-500.0,0.00015616,2]
[334831299,1723605118209,-1268.63,0.00015616,2]
[334831300,1723605118218,-1098.68,0.00015616,2]
[334831301,1723605118228,-500.0,0.00015616,2]
[334831302,1723605118238,-500.0,0.00015616,2]
[334831303,1723605118247,-500.0,0.00015616,2]
[334831304,1723605118257,-500.0,0.00015616,2]
[334831305,1723605118267,-1442.17,0.00015616,2]
[334831306,1723605118277,-500.0,0.00015616,2]
[334831307,1723605118286,-2112.81,0.00015616,2]
[334831308,1723605118296,-2201.12,0.00015616,2]
[334831309,1723605118306,-935.54,0.00015616,2]
[334831310,1723605118316,-500.0,0.00015616,2]
[334831311,1723605118326,-223.74318452,0.00015616,2]
[334831312,1723605118335,-702.32,0.00015616,2]
[334831313,1723605118346,-500.0,0.00015616,2]
[334831314,1723605118355,-647.97,0.00015616,2]
[334831315,1723605118365,-273.95062382,0.00015616,2]
[334831316,1723605118375,-507.01,0.00015616,2]
[334831317,1723605118384,-500.0,0.00015616,2]
[334831318,1723605118394,-1346.58,0.00015616,2]
[334831319,1723605118403,-2514.69,0.00015616,2]
[334831320,1723605118412,-500.0,0.00015616,2]
[334831321,1723605118423,-500.0,0.00015616,2]
[334831322,1723605118434,-3141.73,0.00015616,2]
[334831323,1723605118443,-1144.08,0.00015616,2]
[334831324,1723605118453,-500.0,0.00015616,2]
[334831325,1723605118462,-1273.67,0.00015616,2]
[334831326,1723605118471,-500.0,0.00015616,2]
[334831327,1723605118479,-2542.61,0.00015616,2]
[334831328,1723605118489,-507.88852551,0.00015616,2]
[334831329,1723605118499,-500.0,0.00015616,2]
[334831330,1723605118509,-500.0,0.00015616,2]
[334831331,1723605118519,-500.0,0.00015616,2]
[334831332,1723605118528,-500.0,0.00015616,2]
[334831333,1723605118538,-2720.24,0.00015616,2]
[334831334,1723605118548,-1731.7,0.00015616,2]
[334831335,1723605118558,-743.4,0.00015616,2]
[334831336,1723605118568,-1478.0,0.00015616,2]
[334831337,1723605118578,-500.0,0.00015616,2]
[334831338,1723605118589,-500.0,0.00015616,2]
[334831339,1723605118599,-500.0,0.00015616,2]
[334831340,1723605118609,-500.0,0.00015616,2]
[334831341,1723605118618,-3406.91,0.00015616,2]
[334831342,1723605118627,-500.0,0.00015616,2]
[334831343,1723605118637,-597.7,0.00015616,2]
[334831344,1723605118646,-500.0,0.00015616,2]
[334831345,1723605118655,-3422.23,0.00015616,2]
[334831346,1723605118666,-500.0,0.00015616,2]
[334831347,1723605118675,-2279.94,0.00015616,2]
[334831348,1723605118685,-1289.81,0.00015616,2]
[334831349,1723605118695,-500.0,0.00015616,2]
[334831350,1723605118705,-665.5,0.00015616,2]
[334831351,1723605118714,-1427.7,0.00015616,2]
[334831352,1723605118724,-500.0,0.00015616,2]
[334831353,1723605118734,-2265.5,0.00015616,2]
[334831354,1723605118745,-1145.17,0.00015616,2]
[334831355,1723605118754,-3219.63,0.00015616,2]
[334831356,1723605118764,-500.0,0.00015616,2]
[334831357,1723605118774,-500.0,0.00015616,2]
[334831358,1723605118784,-1191.07,0.00015616,2]
[334831359,1723605118795,-602.6,0.00015616,2]
[334831360,1723605118804,-1014.7,0.00015616,2]
[334831361,1723605118814,-500.0,0.00015616,2]
[334831362,1723605118824,-500.0,0.00015616,2]
[334831363,1723605118834,-500.0,0.00015616,2]
[334831364,1723605118843,-2275.75,0.00015616,2]
[334831365,1723605118853,-500.0,0.00015616,2]
[334831366,1723605118863,-500.0,0.00015616,2]
[334831367,1723605118872,-630.85,0.00015616,2]
[334831368,1723605118882,-3552.25,0.00015616,2]
[334831369,1723605118891,-876.93,0.00015616,2]
[334831370,1723605118901,-4102.14,0.00015616,2]
[334831371,1723605118911,-1191.95,0.00015616,2]
[334831372,1723605118920,-996.84,0.00015616,2]
[334831373,1723605118930,-500.0,0.00015616,2]
[334831374,1723605118940,-3880.01,0.00015616,2]
[334831375,1723605118949,-500.0,0.00015616,2]
[334831376,1723605118958,-646.16,0.00015616,2]
[334831377,1723605118968,-1159.56,0.00015616,2]
[334831378,1723605118977,-2612.35,0.00015616,2]
[334831379,1723605118986,-769.7,0.00015616,2]
[334831380,1723605118996,-589.53,0.00015616,2]
[334831381,1723605119006,-1492.63,0.00015616,2]
[334831382,1723605119015,-1127.31,0.00015616,2]
[334831383,1723605119024,-1344.56,0.00015616,2]
[334831384,1723605119033,-582.87,0.00015616,2]
[334831385,1723605119042,-500.0,0.00015616,2]
[334831386,1723605119052,-955.28,0.00015616,2]
[334831387,1723605119061,-244.07,0.00015616,2]
[334831388,1723605119071,-500.0,0.00015616,2]
[334831389,1723605119080,-1804.03,0.00015616,2]
[334831390,1723605119089,-1584.08,0.00015616,2]
[334831391,1723605119099,-2222.02,0.00015616,2]
[334831392,1723605119108,-500.0,0.00015616,2]
[334831393,1723605119118,-626.87,0.00015616,2]
[334831394,1723605119128,-2565.94,0.00015616,2]
[334831395,1723605119138,-1633.43,0.00015616,2]
[334831396,1723605119147,-1002.48,0.00015616,2]
[334831397,1723605119156,-500.0,0.00015616,2]
[334831398,1723605119166,-1239.94,0.00015616,2]
[334831399,1723605119175,-1158.93,0.00015616,2]
[334831400,1723605119184,-1602.88,0.00015616,2]
[334831401,1723605119194,-985.46,0.00015616,2]
[334831402,1723605119204,-500.0,0.00015616,2]
[334831403,1723605119213,-500.0,0.00015616,2]
[334831404,1723605119223,-500.0,0.00015616,2]
[334831405,1723605119232,-3593.7,0.00015616,2]
[334831406,1723605119241,-1370.77,0.00015616,2]
[334831407,1723605119251,-737.54,0.00015616,2]
[334831408,1723605119260,-953.98,0.00015616,2]
[334831409,1723605119269,-500.0,0.00015616,2]
[334831410,1723605119281,-1630.24,0.00015616,2]
[334831411,1723605119297,-1897.14,0.00015616,2]
[334831412,1723605119306,-880.42,0.00015616,2]
[334831413,1723605119315,-500.0,0.00015616,2]
[334831414,1723605119324,-557.05,0.00015616,2]
[334831415,1723605119335,-875.47,0.00015616,2]
[334831416,1723605119347,-500.0,0.00015616,2]
[334831417,1723605119356,-500.0,0.00015616,2]
[334831418,1723605119365,-1181.63,0.00015616,2]
[334831419,1723605119375,-500.0,0.00015616,2]
[334831420,1723605119385,-1030.34,0.00015616,2]
[334831421,1723605119396,-2181.86,0.00015616,2]
[334831422,1723605119405,-2025.74,0.00015616,2]
[334831423,1723605119415,-500.0,0.00015616,2]
[334831424,1723605119425,-1413.32,0.00015616,2]
[334831425,1723605119434,-910.05,0.00015616,2]
[334831426,1723605119444,-503.14,0.00015616,2]
[334831427,1723605119454,-529.76,0.00015616,2]
[334831428,1723605119463,-1733.06,0.00015616,2]
[334831429,1723605119472,-868.31,0.00015616,2]
[334831430,1723605119482,-2269.46,0.00015616,2]
[334831431,1723605119491,-522.67,0.00015616,2]
[334831432,1723605119500,-500.0,0.00015616,2]
[334831433,1723605119509,-510.64,0.00015616,2]
[334831434,1723605119519,-881.51,0.00015616,2]
[334831435,1723605119528,-706.73,0.00015616,2]
[334831436,1723605119538,-1396.78,0.00015616,2]
[334831437,1723605119547,-772.89,0.00015616,2]
[334831438,1723605119556,-500.0,0.00015616,2]
[334831439,1723605119565,-2133.37,0.00015616,2]
[334831440,1723605119574,-500.0,0.00015616,2]
[334831441,1723605119583,-500.0,0.00015616,2]
[334831442,1723605119593,-500.0,0.00015616,2]
[334831443,1723605119602,-1205.91,0.00015616,2]
[334831444,1723605119612,-929.46,0.00015616,2]
[334831445,1723605119624,-500.0,0.00015616,2]
[334831446,1723605119634,-500.0,0.00015616,2]
[334831447,1723605119643,-613.02,0.00015616,2]
[334831448,1723605119652,-2071.92,0.00015616,2]
[334831449,1723605119661,-849.35,0.00015616,2]
[334831450,1723605119671,-500.0,0.00015616,2]
[334831451,1723605119680,-500.0,0.00015616,2]
[334831452,1723605119689,-1149.19,0.00015616,2]
[334831453,1723605119699,-519.43,0.00015616,2]
[334831454,1723605119708,-816.63,0.00015616,2]
[334831455,1723605119717,-1338.21,0.00015616,2]
[334831456,1723605119726,-748.99,0.00015616,2]
[334831457,1723605119736,-500.0,0.00015616,2]
[334831458,1723605119745,-500.0,0.00015616,2]
[334831459,1723605119755,-699.54,0.00015616,2]
[334831460,1723605119764,-1022.75,0.00015616,2]
[334831461,1723605119774,-523.86,0.00015616,2]
[334831462,1723605119783,-500.0,0.00015616,2]
[334831463,1723605119792,-612.84,0.00015616,2]
[334831464,1723605119802,-500.0,0.00015616,2]
[334831465,1723605119811,-1197.98,0.00015616,2]
[334831466,1723605119821,-919.6,0.00015616,2]
[334831467,1723605119831,-1287.56,0.00015616,2]
[334831468,1723605119840,-500.0,0.00015616,2]
[334831469,1723605119850,-503.29,0.00015616,2]
[334831470,1723605119859,-500.0,0.00015616,2]
[334831471,1723605119868,-1236.66,0.00015616,2]
[334831472,1723605119883,-1706.6,0.00015616,2]
[334831473,1723605119892,-500.0,0.00015616,2]
[334831474,1723605119902,-727.3,0.00015616,2]
[334831475,1723605119911,-500.0,0.00015616,2]
[334831476,1723605119920,-536.46,0.00015616,2]
[334831477,1723605119930,-500.0,0.00015616,2]
[334831478,1723605119940,-721.37,0.00015616,2]
[334831479,1723605119948,-2182.15,0.00015616,2]
[334831480,1723605119958,-1786.37,0.00015616,2]
[334831481,1723605119967,-2427.03,0.00015616,2]
[334831482,1723605119977,-680.94,0.00015616,2]
[334831483,1723605119986,-500.0,0.00015616,2]
[334831484,1723605119994,-771.59,0.00015616,2]
[334831485,1723605120003,-1367.74,0.00015616,2]
[334831486,1723605120012,-500.0,0.00015616,2]
[334831487,1723605120022,-1950.59,0.00015616,2]
[334831488,1723605120032,-750.13,0.00015616,2]
[334831489,1723605120041,-1130.15,0.00015616,2]
[334831490,1723605120050,-1812.05,0.00015616,2]
[334831491,1723605120059,-500.0,0.00015616,2]
[334831492,1723605120069,-576.07,0.00015616,2]
[334831493,1723605120081,-1411.86,0.00015616,2]
[334831494,1723605120090,-500.0,0.00015616,2]
[334831495,1723605120099,-672.92,0.00015616,2]
[334831496,1723605120109,-2545.33,0.00015616,2]
[334831497,1723605120119,-171.04683124,0.00015616,2]
[334831498,1723605120131,-500.0,0.00015616,2]
[334831499,1723605120140,-500.0,0.00015616,2]
[334831500,1723605120149,-500.0,0.00015616,2]
[334831501,1723605120158,-500.0,0.00015616,2]
[334831502,1723605120167,-541.3,0.00015616,2]
[334831503,1723605120177,-500.0,0.00015616,2]
[334831504,1723605120186,-872.09,0.00015616,2]
[334831505,1723605120196,-6288.73,0.00015616,2]
[334831506,1723605120206,-500.0,0.00015616,2]
[334831507,1723605120216,-500.0,0.00015616,2]
[334831508,1723605120225,-500.0,0.00015616,2]
[334831509,1723605120234,-1035.1,0.00015616,2]
[334831510,1723605120243,-500.0,0.00015616,2]
[334831511,1723605120253,-1340.06,0.00015616,2]
[334831512,1723605120263,-504.41872693,0.00015616,2]
[334831513,1723605120273,-1609.25,0.00015616,2]
[334831514,1723605120282,-2362.09,0.00015616,2]
[334831515,1723605120292,-500.0,0.00015616,2]
[334831516,1723605120302,-1034.45,0.00015616,2]
[334831517,1723605120311,-902.63,0.00015616,2]
[334831518,1723605120321,-557.88,0.00015616,2]
[334831519,1723605120331,-943.38,0.00015616,2]
[334831520,1723605120341,-3295.82,0.00015616,2]
[334831521,1723605120356,-500.0,0.00015616,2]
[334831522,1723605120366,-995.76,0.00015616,2]
[334831523,1723605120376,-500.0,0.00015616,2]
[334831524,1723605120386,-197.5418446,0.00015616,2]
[334831525,1723605120396,-500.0,0.00015616,2]
[334831526,1723605120405,-756.18,0.00015616,2]
[334831527,1723605120417,-500.0,0.00015616,2]
[334831528,1723605120427,-681.83,0.00015616,2]
[334831529,1723605120439,-1346.5,0.00015616,2]
[334831530,1723605120448,-1093.21,0.00015616,2]
[334831531,1723605120458,-1173.15,0.00015616,2]
[334831532,1723605120467,-1976.94,0.00015616,2]
[334831533,1723605120476,-675.4,0.00015616,2]
[334831534,1723605120484,-500.0,0.00015616,2]
[334831535,1723605120493,-500.0,0.00015616,2]
[334831536,1723605120502,-533.76,0.00015616,2]
[334831537,1723605120511,-817.86,0.00015616,2]
[334831538,1723605120521,-736.58,0.00015616,2]
[334831539,1723605120531,-1591.01,0.00015616,2]
[334831540,1723605120540,-500.0,0.00015616,2]
[334831541,1723605120549,-1823.18,0.00015616,2]
[334831542,1723605120560,-1560.86,0.00015616,2]
[334831543,1723605120571,-180.75732831,0.00015616,2]
[334831544,1723605120579,-500.0,0.00015616,2]
[334831545,1723605120588,-500.0,0.00015616,2]
[334831546,1723605120597,-500.0,0.00015616,2]
[334831547,1723605120606,-703.88,0.00015616,2]
[334831548,1723605120615,-868.55,0.00015616,2]
[334831549,1723605120626,-549.74,0.00015616,2]
[334831550,1723605120635,-873.62,0.00015616,2]
[334831551,1723605120645,-500.0,0.00015616,2]
[334831552,1723605120654,-1218.76,0.00015616,2]
[334831553,1723605120665,-948.65,0.00015616,2]
[334831554,1723605120675,-530.56,0.00015616,2]
[334831555,1723605120684,-500.0,0.00015616,2]
[334831556,1723605120694,-266.8731508,0.00015616,2]
[334831557,1723605120704,-1962.68,0.00015616,2]
[334831558,1723605120713,-3761.99,0.00015616,2]
[334831559,1723605120723,-508.47288585,0.00015616,2]
[334831560,1723605120732,-1100.79,0.00015616,2]
[334831561,1723605120742,-1091.85,0.00015616,2]
[334831562,1723605120751,-519.9,0.00015616,2]
[334831563,1723605120760,-500.0,0.00015616,2]
[334831564,1723605120770,-500.0,0.00015616,2]
[334831565,1723605120779,-1899.15,0.00015616,2]
[334831566,1723605120788,-184.7986278,0.00015616,2]
[334831567,1723605120798,-591.0,0.00015616,2]
[334831568,1723605120807,-2902.42,0.00015616,2]
[334831569,1723605120816,-681.58,0.00015616,2]
[334831570,1723605120825,-979.62,0.00015616,2]
[334831571,1723605120835,-756.88,0.00015616,2]
[334831572,1723605120844,-522.04,0.00015616,2]
[334831573,1723605120854,-1101.29,0.00015616,2]
[334831574,1723605120863,-500.0,0.00015616,2]
[334831575,1723605120873,-1108.67,0.00015616,2]
[334831576,1723605120883,-558.40269646,0.00015616,2]
[334831577,1723605120893,-1192.85,0.00015616,2]
[334831578,1723605120902,-500.0,0.00015616,2]
[334831579,1723605120911,-1671.63,0.00015616,2]
[334831580,1723605120921,-4757.69,0.00015616,2]
[334831581,1723605120930,-738.15,0.00015616,2]
[334831582,1723605120939,-817.28,0.00015616,2]
[334831583,1723605120949,-500.0,0.00015616,2]
[334831584,1723605120958,-1634.26,0.00015616,2]
[334831585,1723605120969,-1376.93,0.00015616,2]
[334831586,1723605120978,-500.0,0.00015616,2]
[334831587,1723605120987,-1110.82,0.00015616,2]
[334831588,1723605120997,-500.0,0.00015616,2]
[334831589,1723605121007,-18059.26,0.00015616,2]
[334831590,1723605121016,-2339.81,0.00015616,2]
[334831591,1723605121025,-815.45,0.00015616,2]
[334831592,1723605121035,-1022.58,0.00015616,2]
[334831593,1723605121045,-779.0,0.00015616,2]
[334831594,1723605121054,-1739.76,0.00015616,2]
[334831595,1723605121063,-500.0,0.00015616,2]
[334831596,1723605121073,-716.15,0.00015616,2]
[334831597,1723605121082,-500.0,0.00015616,2]
[334831598,1723605121092,-824.5,0.00015616,2]
[334831599,1723605121101,-500.0,0.00015616,2]
[334831600,1723605121111,-611.72,0.00015616,2]
[334831601,1723605121123,-500.0,0.00015616,2]
[334831602,1723605121132,-564.02,0.00015616,2]